Cogmind - Beta 16 @@@ ROGUE MODE // 2026.01.14 @ 03:31:45 Player: Peregrine Result: Destroyed by G-47 Trooper with Particle Gun Performance ------------- Evolutions (0) 0 Regions Visited (1) 200 Robots Destroyed (20) 100 Value Destroyed (417) 417 Prototype IDs (0) 0 Alien Tech Used (0) 0 Bonus (0) 0 TOTAL SCORE: 717 Bonus ------- None Cogmind --------- Core Integrity 0/250 Matter 256/300 Energy 92/100 System Corruption 0% Temperature Cool (9) Movement Walking (120) Location -10/Materials Parts ------- > --- POWER (1) -------- (None) > --- PROPULSION (2) --- Improved Aluminum Leg Improved Aluminum Leg > --- UTILITY (2) ------ Small Storage Unit Improved Targeting Computer > --- WEAPON (2) ------- Light Assault Rifle > --- INVENTORY (8) ---- Aluminum Leg Improved Aluminum Leg Wheel Compact Wheel Cooling System Large Matter Pod (141) Improved Targeting Computer Peak State ------------ > --- POWER ------------ Ion Engine > --- PROPULSION ------- Improved Aluminum Leg Improved Aluminum Leg > --- UTILITY ---------- Small Storage Unit Improved Targeting Computer > --- WEAPON ----------- Small Laser Assault Rifle > --- INVENTORY -------- Aluminum Leg Improved Aluminum Leg Wheel Compact Wheel Cooling System Large Matter Pod Improved Targeting Computer Light Assault Rifle [Rating: 11] Favorites ----------- Power Ion Engine Engine Ion Engine Propulsion Aluminum Leg Leg Aluminum Leg Utility Small Storage Unit Storage Small Storage Unit Processor Improved Targeting Computer Weapon Small Laser Energy Gun Small Laser Ballistic Gun Assault Rifle Build | -11 -10 ------- Run | Yrd Mat Slots Evolved . | . . Power . | . . Propulsion . | . . Utility . | . . Weapon . | . . Parts Attached 11 | . 11 Power 2 | . 2 Engine 2 | . 2 Core . | . . Reactor . | . . Propulsion 6 | . 6 Treads . | . . Leg 6 | . 6 Wheel . | . . Hover . | . . Flight . | . . Utility 1 | . 1 Device . | . . Storage . | . . Processor 1 | . 1 Hackware . | . . Protection . | . . Artifact . | . . Weapon 2 | . 2 Energy Gun . | . . Energy Cannon . | . . Ballistic Gun 2 | . 2 Ballistic Cannon . | . . Launcher . | . . Special Weapon . | . . Impact Weapon . | . . Slashing Weapon . | . . Piercing Weapon . | . . Special Melee Weapon . | . . Unidentified Prototypes . | . . Parts Lost 5 | . 5 Power 2 | . 2 Propulsion . | . . Utility . | . . Weapon 3 | . 3 Highest Loss Streak 2 | . 2 To Critical Strikes . | . . Average Backups 5 | 6 5 Power . | 1 . Propulsion 3 | 4 3 Utility 1 | . 1 Weapon . | 1 . Tool/Special . | . . Unused Backups 7 | . 7 Power . | . . Propulsion 4 | . 4 Utility 3 | . 3 Weapon . | . . Tool/Special . | . . Average Slot Usage (%) 88 | . 88 Engine 13 | . 13 Leg 28 | . 28 Storage 14 | . 14 Processor 6 | . 6 Energy Gun 11 | . 11 Ballistic Gun 13 | . 13 Peak Build Rating 11 | 6 11 Average Rating 8 | 6 8 On Entrance 6 | 6 6 Avg Prop Armor Cover (%) . | . . Naked Turns . | . . Heaviest Build 13 | 10 13 Greatest Support 26 | 20 26 Greatest Overweight (x) . | . . Average Overweight (x) . | . . Largest Inventory Capacity 8 | 8 8 Average Capacity 8 | 8 8 Most Carried 8 | 6 8 Average Carried 5 | 6 5 Final Capacity 8 | 8 8 Final Carried 7 | 6 7 Class Distribution -------------------- 100% | Mutant Dominant Class ---------------- Mutant | -10/Materials Resources | -11 -10 ----------- Run | Yrd Mat Matter Collected 604 | 200 404 Remotely . | . . Salvage Created 600 | . 600 Parts 31 | . 31 Haulers Intercepted . | . . Recyclers Shooed . | . . Parts Field Recycled . | . . Retrieved Matter . | . . Parts Self-Destructed . | . . Prevented . | . . Parts Restored . | . . Kills | -11 -10 ------- Run | Yrd Mat Combat Hostiles Destroyed 14 | . 14 Guns 14 | . 14 Classes Destroyed 7 | . 7 Builder 1 | . 1 Recycler 1 | . 1 Mechanic 1 | . 1 Operator 2 | . 2 Watcher 1 | . 1 Swarmer 6 | . 6 Grunt 8 | . 8 Best Kill Streak 3 | . 3 Combat Bots Only 3 | . 3 Max Kills in Single Turn 1 | . 1 Gunslinging . | . . Exploded . | . . Melee . | . . Uniques/NPCs Destroyed . | . . Combat | -11 -10 -------- Run | Yrd Mat Hostile Shots Fired 134 | . 134 Missed 32 | . 32 Hits 102 | . 102 Projectile 102 | . 102 Critical Strikes 1 | . 1 Damage Taken 1127 | . 1127 Core 255 | . 255 Absorbed by Shields . | . . Core Remaining (%) 100 | 100 . Volleys Fired 95 | . 95 Largest 2 | . 2 Hottest 80 | . 80 Shots Fired 174 | . 174 Gun 174 | . 174 Cannon . | . . Launcher . | . . Special . | . . Kinetic 96 | . 96 Thermal 78 | . 78 Explosive . | . . Electromagnetic . | . . Robot Hit Streak 12 | . 12 Robot Miss Streak 5 | . 5 Penetration Max . | . . Secondary Targets 2 | . 2 Max Gunslinging Chain 1 | . 1 Shots Hit Robots 115 | . 115 Core Hits 34 | . 34 Critical Kills . | . . Critical Parts Destroyed . | . . Critical Strikes . | . . Melee Attacks . | . . Impact . | . . Slashing . | . . Piercing . | . . Sneak Attacks . | . . Combat Hostiles . | . . Follow-up Attacks . | . . Damage Inflicted 1336 | . 1336 Guns 1336 | . 1336 Cannons . | . . Explosions . | . . Melee . | . . Ramming . | . . Kinetic 758 | . 758 Thermal 578 | . 578 Explosive . | . . Electromagnetic . | . . Impact . | . . Slashing . | . . Piercing . | . . Highest Corruption . | . . Average Corruption . | . . Corruption Purged . | . . Corruption Blocked . | . . Overload Shots . | . . Overflow Damage . | . . Projectiles . | . . Explosions . | . . Melee . | . . Knockbacks . | . . Impact . | . . Kinetic . | . . Secondary . | . . Self-Inflicted Damage . | . . Shots . | . . Rammed . | . . Targets Rammed . | . . Kicked . | . . Crushed . | . . Highest Temperature 188 | . 188 Average Temperature 56 | . 56 Received Heat Transfer 474 | . 474 Siege Activations . | . . Martial Activations . | . . Shielding Activations . | . . Robots Disrupted . | . . Combat Hostiles . | . . Robots Corrupted . | . . Combat Hostiles . | . . Parts Fried . | . . Impact Corruptions . | . . Robots Melted . | . . Combat Hostiles . | . . Parts Melted 1 | . 1 Heat Transferred 1300 | . 1300 Parts Sabotaged . | . . Parts Stolen . | . . Parts Stripped . | . . Power Chain Reactions . | . . Alert | -11 -10 ------- Run | Yrd Mat Maximum Alert Level . | . . Low Security (%) 100 | 100 100 Level 1 . | . . Level 2 . | . . Level 3 . | . . Level 4 . | . . Level 5 . | . . High Security . | . . Max Security . | . . Peak Influence 141 | . 141 Initial . | . . Average 77 | . 77 Influence Increases 401 | . 401 Destroy 0b10 Robot/C 280 | . 280 Destroy 0b10 Robot/NC 30 | . 30 Destroy Leader 62 | . 62 Successful Hack 12 | . 12 Destroy Structure 2 | . 2 Lose Combat Pursuer 15 | . 15 Influence Decreases 320 | . 320 Time Decay 270 | . 270 Lost Part 50 | . 50 Squads Dispatched 4 | . 4 Investigation . | . . Extermination . | . . Reinforcement 4 | . 4 Assault . | . . Garrison . | . . Intercept . | . . Searches Triggered . | . . Construction Impeded . | . . Haulers Reinforced . | . . Active Scanning Responses . | . . Cargo Convoy Interrupts . | . . Stealth | -11 -10 --------- Run | Yrd Mat Distress Signals 1 | . 1 Communications Jammed . | . . Distress Signals . | . . Times Spotted 25 | . 25 Peak Tracking Total 5 | . 5 Tactical Retreats 1 | . 1 Traps | -11 -10 ------- Run | Yrd Mat Traps Triggered . | . . Indirectly . | . . Trap Hack Attempts . | . . Triggered . | . . Disarmed . | . . Reprogrammed . | . . Reused . | . . Traps Extracted . | . . Installed . | . . Triggered . | . . Machines | -11 -10 ---------- Run | Yrd Mat Machines Disabled . | . . Max in Single Turn . | . . Machines Repaired . | . . Machines Dismantled . | . . Machines Sabotaged . | . . Overloaded Fab Kills . | . . Hacking | -11 -10 --------- Run | Yrd Mat Machines Accessed 3 | . 3 Terminals 3 | . 3 Fabricators . | . . Repair Stations . | . . Recycling Units . | . . Scanalyzers . | . . Garrison Access . | . . Total Hacks 8 | . 8 Successful 5 | . 5 Failed 3 | . 3 Catastrophic . | . . Database Lockouts . | . . Manual 8 | . 8 Terminals 8 | . 8 Fabricators . | . . Repair Stations . | . . Recycling Units . | . . Scanalyzers . | . . Garrison Access . | . . Terminal Hacks . | . . Fabricator Hacks . | . . Repair Station Hacks . | . . Recycling Unit Hacks . | . . Scanalyzer . | . . Garrison Access Hacks . | . . Unauthorized Hacks 5 | . 5 Terminals 5 | . 5 Botnet 2 | . 2 Skim 3 | . 3 Fabricators . | . . Repair Stations . | . . Recycling Units . | . . Scanalyzers . | . . Garrison Access . | . . Data Cores Recovered . | . . Used . | . . Hacking Detections 1 | . 1 Full Trace Events . | . . Feedback Events . | . . Feedback Blocked . | . . Robot Schematics Acquired . | . . Robots Built . | . . Authchips . | . . Time . | . . Total Robot Build Rating . | . . Part Schematics Acquired . | . . Parts Built . | . . Authchips . | . . Time . | . . Total Part Build Rating . | . . Part Studies Acquired . | . . Parts Repaired . | . . Time . | . . Parts Recycled . | . . Recycled Matter . | . . Retrieved Matter . | . . Retrieved Components . | . . Parts Scanalyzed . | . . Part Schematics Acquired . | . . Parts Damaged . | . . Bothacking | -11 -10 ------------ Run | Yrd Mat Used RIF Installer . | . . Robots Hacked . | . . Non-combat . | . . Combat . | . . Robot Hacks Applied . | . . Relay Couplers Released . | . . Fabnet Peak Effective % . | . . Robots Rewired . | . . Allies Hacked . | . . Hacks Repelled . | . . Allies | -11 -10 -------- Run | Yrd Mat Total Allies . | . . Largest Group . | . . Highest-Rated Group . | . . Highest-Rated Ally . | . . Total Orders . | . . Ally Attacks . | . . Total Damage . | . . Kills . | . . Allies Corrupted . | . . Allies Melted . | . . Intel | -11 -10 ------- Run | Yrd Mat Active Infowar (turns) . | . . Robot Analysis Total . | . . Derelict Logs Recovered . | . . Drone Launches . | . . Drone Recoveries . | . . Exploration | -11 -10 ------------- Run | Yrd Mat Turns Passed 688 | 2 686 Spaces Moved 298 | 2 296 Core . | . . Treads . | . . Legs 298 | 2 296 Wheels . | . . Hover . | . . Flight . | . . Fastest Speed 120 | 120 120 Average Speed 120 | 120 120 Slowest Speed 120 | 120 120 Overloaded Moves . | . . Propulsion Burnouts . | . . Robots Hopped . | . . Potential Cave-ins . | . . Cave-ins Triggered . | . . Exploration Rate (%) 30 | 2 59 Regions Visited 1 Branch Regions . Pre-discovered Areas . | . . Known Exits Taken . | . . Unknown Exits Taken 1 | 1 . Scrap Searched . | . . Spaces Dug . | . . Terrain Destroyed . | . . Melee . | . . Projectile . | . . AOE . | . . Terrain Rammed . | . . Walls Destroyed . | . . Machines Disabled . | . . Actions | -11 -10 --------- Run | Yrd Mat Total 462 | 1 461 Wait 39 | . 39 Move 297 | 1 296 Hop . | . . Pick Up 12 | . 12 Fast Attach . | . . Attach 4 | . 4 Detach . | . . Swap 8 | . 8 Drop 7 | . 7 Fire 95 | . 95 Melee . | . . Ram . | . . Kick . | . . Crush . | . . Escape Stasis . | . . Rewire . | . . Trap . | . . Miscellaneous . | . . Route ------- -11/Scrapyard -10/Materials (discovered 1 exit: [*Min]) History --------- Turn | Location | Event 1 | -11/Scrapyard | Discovered new exit (range 1) 3 | -11/Scrapyard | Entered Materials 202 | -10/Materials | Discovered new exit (range 13) 302 | -10/Materials | Build established: Mutant 323 | -10/Materials | Core integrity fell below 50% 595 | -10/Materials | Core integrity fell below 20% 689 | -10/Materials | Destroyed by G-47 Trooper with Particle Gun Last Messages --------------- 00427_ Sml. Laser destroyed. 00438_ G-34 Mercenary destroyed. 00450_ Acquired 35 matter. 00459_ G-47 Trooper destroyed. 00464_ Acquired 52 matter. 00473_ O-16 Technician: "IFF HANDSHAKE FAILED. SECURING TERMINAL." 00478_ W-16 Scout destroyed. 00481_ Acquired 18 matter. 00489_ ALERT: Hostiles spotted, dispatching reinforcements to Terminal M004. 00497_ K-01 Serf collects debris. 00509_ G-34 Mercenary destroyed. 00600_ Acquired 41 matter. 00602_ Acquired 50 matter. 00628_ R-06 Scavenger inserts Imp. Heat Sink into recycling unit. 00629_ Recycling unit begins recycling process. 00650_ K-01 Serf collects debris. 00660_ W-16 Scout sends out distress signal. 00678_ Ion Engine destroyed. 00680_ Assault Rifle destroyed. Map ----- +----------------------------------------------------+ | # ##?????????????????????????????????? | | #????????????????????????????????????? | | #????????????????????????????????????? | | #????????????????????????????????????? | | #????????????????????????????????????? | | #????????????????????????????????????? | | #????????????????????????????????????? | | #????????????????????????????????????? | | #????????????????????????????????????? | | #????????????????????????????????????? | | #??????????????????????? ???????????? | | #??????????????????????? ???????????? | | #??????????????????????? ???????????? | | #??????????????????????? ???????????? | | #??????????????????????? ???????????? | | #??????????????????????? ???????????? | | #??????????????????????? ???????????? | | ## #??????????????????g #??????????? | | #?????????????????? #??????????? | | #?????????????????? #??????????? | | #?????????????????? #??????????? | | ######??????????????????#g#??????????? | | ??????##########????????# #??????????? | | ?????# #######??# #??????????? | | ?????# """ # #??# #??????????? | | ?????# "Y" # """ #??#@#??????????? | | ?????# """?# """ #??# #??????????? | | ?????# ! """ # """ #??# #??????????? | | ###### ""??# #??# #??????????? | | "|""## ????# #??# #??????????? | | "|" ## ??????# #?## ####???????? | | ##+#########+####### #???????? | | ! #???????? | | < " #???????? | | #???????? | | ##+######### ##### #???????? | | ##### ## ###### ##???????? | | #???# ## # # #????????? | | #???# ] ## # "" + +????????? | | #???# ## # T" # #????????? | | #???# ## # "" # #????????? | | #???# ## # # #????????? | | #???# ! ## # # #????????? | | #???# = =+ # ! # #????????? | | #???#######+#### # # #????????? | | #?????????# #??# # # #????????? | | ########### #### ###### #????????? | | ! | * == != #????????? | | #####/###########+#######[%=#????????? | | ???# #???# #??# * #????????? | +----------------------------------------------------+ Best States ------------- Heat Dissipation 25 Energy Generation 10 Energy Capacity 250 Matter Stores 300 Matter Capacity 300 Sight Range 16 Terrain Scan Density 10 Evasion (%) 55 Targeting Accuracy 6 Item Schematics ----------------- None Robot Schematics ------------------ None Fabricated ------------ Nothing Repaired ---------- Nothing Studied --------- None Alien Tech Used ----------------- None Achievements -------------- None Challenges ------------ None Game ------ Seed LayeredMicrowarpCarapace Manual? 0 Play Time 00:09:12 Cumulative 159.5 hours Start 2026.01.14 @ 03:27:09 End 2026.01.14 @ 03:31:45 Sessions 1 Manual Loads 0 Difficulty Rogue Special Mode None Game No. 185 Rogue 170 Adventurer 15 Explorer 0 Win Type - Total 9 Types 3/0/3/1/0/0/1/0/0/1 Lore% 54 Gallery% 70 Achievement% 52 Wizard Run 0 Options --------- Layout 0 ASCII 0 Keyboard 0 Movement Mouse Keybinds 0 Fullscreen 2 Font 36/Smallcaps Map View 76x50 Zoom Use 0% Tactical HUD 1 Map Filters NONE Filters NONE Steam 1 RUN: 59a12281-7c32-4ee5-92ee-93536326505f